[Event "*** SCC Grand Prix: Titled Tuesday Blitz"]
[Site "Chess.com"]
[Date "2020.10.06"]
[Round "8"]
[White "Konavets"]
[Black "vladislavkovalev"]
[Result "1-0"]
[WhiteElo "3010"]
[BlackElo "2871"]
[TimeControl "180+1"]
[EndTime "11:36:08 PDT"]
[Termination "Konavets won on time"]

1. c4 {[%clk 0:03:00.9]} 1... g6 {[%clk 0:02:59.9]} 2. d4 {[%clk 0:02:57.2]}
2... Bg7 {[%clk 0:03:00.4]} 3. Nc3 {[%clk 0:02:57.5]} 3... d6 {[%clk 0:03:01]}
4. e4 {[%clk 0:02:56.9]} 4... e5 {[%clk 0:03:01.1]} 5. Be3 {[%clk 0:02:54.2]}
5... exd4 {[%clk 0:02:45.1]} 6. Bxd4 {[%clk 0:02:55.1]} 6... Nf6 {[%clk
0:02:44]} 7. c5 {[%clk 0:02:55.6]} 7... O-O {[%clk 0:02:39.2]} 8. cxd6 {[%clk
0:02:55.9]} 8... cxd6 {[%clk 0:02:38.7]} 9. Bb5 {[%clk 0:02:39.7]} 9... Nc6
{[%clk 0:02:22.3]} 10. Bxc6 {[%clk 0:02:29.8]} 10... bxc6 {[%clk 0:02:23.2]} 11.
Nge2 {[%clk 0:02:30.4]} 11... Re8 {[%clk 0:02:21.1]} 12. f3 {[%clk 0:02:30.4]}
12... d5 {[%clk 0:02:12.7]} 13. exd5 {[%clk 0:02:25.7]} 13... Ba6 {[%clk
0:01:59.9]} 14. O-O {[%clk 0:02:17.7]} 14... Bxe2 {[%clk 0:01:49.8]} 15. Nxe2
{[%clk 0:02:17.1]} 15... Qxd5 {[%clk 0:01:50.4]} 16. Nc3 {[%clk 0:02:08.9]}
16... Qc4 {[%clk 0:01:46.2]} 17. Qa4 {[%clk 0:02:04.9]} 17... Qxa4 {[%clk
0:01:30.4]} 18. Nxa4 {[%clk 0:02:05.8]} 18... Re2 {[%clk 0:01:26.2]} 19. Rf2
{[%clk 0:01:57.6]} 19... Rxf2 {[%clk 0:01:26]} 20. Bxf2 {[%clk 0:01:58.5]} 20...
Nd5 {[%clk 0:01:24.6]} 21. Rc1 {[%clk 0:01:45.7]} 21... Nb6 {[%clk 0:01:04.6]}
22. Nc3 {[%clk 0:01:17]} 22... Rd8 {[%clk 0:01:04.3]} 23. Kf1 {[%clk 0:01:07.6]}
23... Rd2 {[%clk 0:01:00.4]} 24. b3 {[%clk 0:01:07.5]} 24... Be5 {[%clk
0:00:52.9]} 25. a4 {[%clk 0:00:56.6]} 25... Rd3 {[%clk 0:00:46.1]} 26. Be1
{[%clk 0:00:39.4]} 26... Nd5 {[%clk 0:00:37.3]} 27. Nxd5 {[%clk 0:00:39.4]}
27... cxd5 {[%clk 0:00:38.2]} 28. Rb1 {[%clk 0:00:34.5]} 28... d4 {[%clk
0:00:32.8]} 29. h3 {[%clk 0:00:15.3]} 29... h5 {[%clk 0:00:26]} 30. a5 {[%clk
0:00:15.7]} 30... a6 {[%clk 0:00:26]} 31. h4 {[%clk 0:00:07.4]} 31... Kg7 {[%clk
0:00:21.5]} 32. Ke2 {[%clk 0:00:07.7]} 32... Re3+ {[%clk 0:00:21.5]} 33. Kf1
{[%clk 0:00:07.8]} 33... Rd3 {[%clk 0:00:21.9]} 34. Ke2 {[%clk 0:00:04.7]} 34...
Re3+ {[%clk 0:00:22.2]} 35. Kd1 {[%clk 0:00:05.2]} 35... Rd3+ {[%clk 0:00:18.4]}
36. Kc2 {[%clk 0:00:05.2]} 36... Re3 {[%clk 0:00:19.1]} 37. Bd2 {[%clk
0:00:05.5]} 37... Re2 {[%clk 0:00:18.1]} 38. Kd3 {[%clk 0:00:05.9]} 38... Rxg2
{[%clk 0:00:18.2]} 39. b4 {[%clk 0:00:06.5]} 39... Bc7 {[%clk 0:00:05.4]} 40.
Rc1 {[%clk 0:00:06.9]} 40... Bd6 {[%clk 0:00:04.8]} 41. Rc4 {[%clk 0:00:06.6]}
41... Be7 {[%clk 0:00:03.7]} 42. Rxd4 {[%clk 0:00:05.9]} 42... Rf2 {[%clk
0:00:04.4]} 43. Re4 {[%clk 0:00:03.7]} 43... Bd6 {[%clk 0:00:04.1]} 44. Ke3
{[%clk 0:00:03.4]} 44... Rh2 {[%clk 0:00:03.8]} 45. Bc3+ {[%clk 0:00:03.9]}
45... Kf8 {[%clk 0:00:03.2]} 46. Rc4 {[%clk 0:00:03.4]} 46... Rxh4 {[%clk
0:00:03]} 47. Rxh4 {[%clk 0:00:02.8]} 1-0

[Event "*** SCC Grand Prix: Titled Tuesday Blitz"]
[Site "Chess.com"]
[Date "2020.10.06"]
[Round "8"]
[White "AttackSparrow"]
[Black "Stalri"]
[Result "1-0"]
[WhiteElo "2392"]
[BlackElo "2152"]
[TimeControl "180+1"]
[EndTime "11:36:08 PDT"]
[Termination "AttackSparrow won by checkmate"]

1. e4 {[%clk 0:03:00.9]} 1... c5 {[%clk 0:02:59.5]} 2. c3 {[%clk 0:03:00]} 2...
Nf6 {[%clk 0:02:58.6]} 3. e5 {[%clk 0:02:59.8]} 3... Nd5 {[%clk 0:02:58.8]} 4.
d4 {[%clk 0:03:00.4]} 4... cxd4 {[%clk 0:02:59.5]} 5. cxd4 {[%clk 0:03:01.3]}
5... Nc6 {[%clk 0:02:59.8]} 6. Nf3 {[%clk 0:03:01.8]} 6... d6 {[%clk 0:03:00.1]}
7. Bc4 {[%clk 0:03:02]} 7... e6 {[%clk 0:02:59.9]} 8. O-O {[%clk 0:03:01.6]}
8... Be7 {[%clk 0:02:59]} 9. Bd2 {[%clk 0:03:01.2]} 9... O-O {[%clk 0:02:58]}
10. Nc3 {[%clk 0:03:00.7]} 10... Nxc3 {[%clk 0:02:57.7]} 11. Bxc3 {[%clk
0:03:01.6]} 11... dxe5 {[%clk 0:02:58.3]} 12. dxe5 {[%clk 0:03:02.4]} 12... Qc7
{[%clk 0:02:58.1]} 13. Rc1 {[%clk 0:03:00.3]} 13... Rd8 {[%clk 0:02:58.4]} 14.
Qe2 {[%clk 0:03:00.1]} 14... b6 {[%clk 0:02:50.5]} 15. h4 {[%clk 0:02:58.1]}
15... Bb7 {[%clk 0:02:50.1]} 16. Bd3 {[%clk 0:02:56.1]} 16... Rd5 {[%clk
0:02:33.9]} 17. Be4 {[%clk 0:02:53.6]} 17... Rc5 {[%clk 0:02:25.6]} 18. Qe3
{[%clk 0:01:53.2]} 18... Rc8 {[%clk 0:02:14.9]} 19. Rcd1 {[%clk 0:01:23.7]}
19... Na5 {[%clk 0:02:03.6]} 20. Bb1 {[%clk 0:00:41.6]} 20... Nc4 {[%clk
0:01:55.6]} 21. Qd3 {[%clk 0:00:40.3]} 21... g6 {[%clk 0:01:56.2]} 22. Rfe1
{[%clk 0:00:36.3]} 22... Rd5 {[%clk 0:01:55.7]} 23. Qe2 {[%clk 0:00:35.2]} 23...
Rcd8 {[%clk 0:01:51.8]} 24. Rxd5 {[%clk 0:00:35.2]} 24... Bxd5 {[%clk
0:01:46.5]} 25. h5 {[%clk 0:00:35.3]} 25... Bxf3 {[%clk 0:01:34.6]} 26. Qxf3
{[%clk 0:00:36.2]} 26... Nd2 {[%clk 0:01:30.9]} 27. Qe2 {[%clk 0:00:25.6]} 27...
Nxb1 {[%clk 0:01:24.2]} 28. Rxb1 {[%clk 0:00:26.5]} 28... a5 {[%clk 0:01:20.6]}
29. hxg6 {[%clk 0:00:25.1]} 29... hxg6 {[%clk 0:01:20.4]} 30. Qf3 {[%clk
0:00:24]} 30... Rd5 {[%clk 0:01:18]} 31. g3 {[%clk 0:00:23.4]} 31... Qd7 {[%clk
0:01:17.5]} 32. Kg2 {[%clk 0:00:22.9]} 32... Rd3 {[%clk 0:01:13]} 33. Qe4 {[%clk
0:00:22]} 33... Qd5 {[%clk 0:01:12.7]} 34. Qxd5 {[%clk 0:00:21.5]} 34... Rxd5
{[%clk 0:01:11.7]} 35. Kf3 {[%clk 0:00:21.3]} 35... Bc5 {[%clk 0:01:10.1]} 36.
Rf1 {[%clk 0:00:19.9]} 36... Kf8 {[%clk 0:01:09.4]} 37. Ke4 {[%clk 0:00:19.5]}
37... Ke7 {[%clk 0:01:08.5]} 38. a3 {[%clk 0:00:19.2]} 38... Kd7 {[%clk
0:01:06.9]} 39. b4 {[%clk 0:00:19.1]} 39... axb4 {[%clk 0:01:06.1]} 40. axb4
{[%clk 0:00:20]} 40... Be7 {[%clk 0:01:05.7]} 41. Ra1 {[%clk 0:00:19.5]} 41...
Bd8 {[%clk 0:00:52.6]} 42. Ra7+ {[%clk 0:00:18.1]} 42... Bc7 {[%clk 0:00:53]}
43. Ra8 {[%clk 0:00:16.1]} 43... Bd8 {[%clk 0:00:52.5]} 44. Ra1 {[%clk
0:00:12.9]} 44... Bc7 {[%clk 0:00:52.2]} 45. f4 {[%clk 0:00:12.8]} 45... Kc6
{[%clk 0:00:51.3]} 46. g4 {[%clk 0:00:12.1]} 46... Kb5 {[%clk 0:00:51.2]} 47.
Ra7 {[%clk 0:00:11.2]} 47... Rd7 {[%clk 0:00:48.3]} 48. f5 {[%clk 0:00:09.2]}
48... gxf5+ {[%clk 0:00:47.9]} 49. gxf5 {[%clk 0:00:10.1]} 49... Kc4 {[%clk
0:00:47.9]} 50. Be1 {[%clk 0:00:09.1]} 50... Rd4+ {[%clk 0:00:46.6]} 51. Ke3
{[%clk 0:00:08.6]} 51... exf5 {[%clk 0:00:45.6]} 52. Rxc7+ {[%clk 0:00:04.3]}
52... Kb5 {[%clk 0:00:39.1]} 53. Kxd4 {[%clk 0:00:05.2]} 53... f4 {[%clk
0:00:39.8]} 54. Ke4 {[%clk 0:00:05]} 54... f3 {[%clk 0:00:40.7]} 55. Kxf3 {[%clk
0:00:05.5]} 55... Ka4 {[%clk 0:00:40.4]} 56. Rxf7 {[%clk 0:00:06.4]} 56... b5
{[%clk 0:00:41.2]} 57. e6 {[%clk 0:00:07.1]} 57... Kb3 {[%clk 0:00:42.1]} 58. e7
{[%clk 0:00:07.5]} 58... Ka4 {[%clk 0:00:43]} 59. e8=Q {[%clk 0:00:07.4]} 59...
Kb3 {[%clk 0:00:43.9]} 60. Qxb5 {[%clk 0:00:07.8]} 60... Kc2 {[%clk 0:00:43]}
61. Rc7+ {[%clk 0:00:07.1]} 61... Kb2 {[%clk 0:00:43.9]} 62. Qe2+ {[%clk
0:00:06.9]} 62... Kb3 {[%clk 0:00:44.8]} 63. Rc3+ {[%clk 0:00:06.4]} 63... Ka4
{[%clk 0:00:43.3]} 64. b5 {[%clk 0:00:06.7]} 64... Ka5 {[%clk 0:00:44.2]} 65. b6
{[%clk 0:00:06.6]} 65... Kb4 {[%clk 0:00:44.5]} 66. Qb2+ {[%clk 0:00:06.8]}
66... Ka4 {[%clk 0:00:44.2]} 67. Ra3# {[%clk 0:00:07.7]} 1-0

[Event "*** SCC Grand Prix: Titled Tuesday Blitz"]
[Site "Chess.com"]
[Date "2020.10.06"]
[Round "8"]
[White "Ermito2020"]
[Black "smshk35"]
[Result "1/2-1/2"]
[WhiteElo "2661"]
[BlackElo "2478"]
[TimeControl "180+1"]
[EndTime "11:36:09 PDT"]
[Termination "Game drawn by repetition"]

1. e4 {[%clk 0:03:00.9]} 1... c5 {[%clk 0:02:59.6]} 2. Nf3 {[%clk 0:03:01.2]}
2... e6 {[%clk 0:02:59.8]} 3. d4 {[%clk 0:03:01.6]} 3... cxd4 {[%clk 0:03:00.7]}
4. Nxd4 {[%clk 0:03:02.2]} 4... a6 {[%clk 0:03:01.2]} 5. Bd3 {[%clk 0:03:01.4]}
5... Nc6 {[%clk 0:03:00.4]} 6. Nxc6 {[%clk 0:02:57.9]} 6... dxc6 {[%clk
0:03:01.3]} 7. O-O {[%clk 0:02:58.2]} 7... e5 {[%clk 0:02:58]} 8. Nc3 {[%clk
0:02:54.2]} 8... Bc5 {[%clk 0:02:57.3]} 9. Qe2 {[%clk 0:02:44.9]} 9... Nf6
{[%clk 0:02:56.3]} 10. Be3 {[%clk 0:02:44.8]} 10... Bxe3 {[%clk 0:02:54.8]} 11.
Qxe3 {[%clk 0:02:45.7]} 11... O-O {[%clk 0:02:52.1]} 12. Rad1 {[%clk 0:02:42.8]}
12... Qc7 {[%clk 0:02:52]} 13. Na4 {[%clk 0:02:39.4]} 13... b5 {[%clk
0:02:49.8]} 14. Nc5 {[%clk 0:02:37.8]} 14... Qb6 {[%clk 0:02:47.6]} 15. h3
{[%clk 0:02:26.4]} 15... Nd7 {[%clk 0:02:34.4]} 16. Nxd7 {[%clk 0:02:25.8]}
16... Qxe3 {[%clk 0:02:33.4]} 17. fxe3 {[%clk 0:02:26.7]} 17... Bxd7 {[%clk
0:02:33.4]} 18. Bc4 {[%clk 0:02:15.3]} 18... Bxh3 {[%clk 0:02:23.2]} 19. Bxf7+
{[%clk 0:02:02.1]} 19... Rxf7 {[%clk 0:02:21.9]} 20. gxh3 {[%clk 0:02:01.9]}
20... Rxf1+ {[%clk 0:02:11.2]} 21. Kxf1 {[%clk 0:02:02.8]} 21... Rf8+ {[%clk
0:02:03.9]} 22. Kg2 {[%clk 0:02:02.8]} 22... Rf6 {[%clk 0:01:41.7]} 23. Rd7
{[%clk 0:01:55.6]} 23... a5 {[%clk 0:01:39.8]} 24. b3 {[%clk 0:01:53.2]} 24...
a4 {[%clk 0:01:37.5]} 25. bxa4 {[%clk 0:01:53]} 25... bxa4 {[%clk 0:01:38.4]}
26. Ra7 {[%clk 0:01:53.3]} 26... Rd6 {[%clk 0:01:37.7]} 27. Rxa4 {[%clk
0:01:49.9]} 27... Rd2+ {[%clk 0:01:37.7]} 28. Kf3 {[%clk 0:01:48.3]} 28... Rxc2
{[%clk 0:01:37.9]} 29. Ra7 {[%clk 0:01:42]} 29... c5 {[%clk 0:01:24]} 30. a4
{[%clk 0:01:41.6]} 30... c4 {[%clk 0:01:23.5]} 31. a5 {[%clk 0:01:40.8]} 31...
c3 {[%clk 0:01:21.7]} 32. Re7 {[%clk 0:01:29.2]} 32... Rc1 {[%clk 0:01:08.3]}
33. a6 {[%clk 0:00:33.3]} 33... c2 {[%clk 0:00:59.4]} 34. a7 {[%clk 0:00:33.1]}
34... Ra1 {[%clk 0:00:59.3]} 35. Rc7 {[%clk 0:00:33.2]} 35... Rxa7 {[%clk
0:00:50.7]} 36. Rxc2 {[%clk 0:00:33.7]} 36... Kf7 {[%clk 0:00:50.2]} 37. Rc6
{[%clk 0:00:33.5]} 37... Ra1 {[%clk 0:00:48.2]} 38. Kg4 {[%clk 0:00:31.2]} 38...
Rf1 {[%clk 0:00:48.1]} 39. Ra6 {[%clk 0:00:30]} 39... Rf2 {[%clk 0:00:46.6]} 40.
h4 {[%clk 0:00:29.2]} 40... Rf1 {[%clk 0:00:46.5]} 41. h5 {[%clk 0:00:28.2]}
41... h6 {[%clk 0:00:44.2]} 42. Ra7+ {[%clk 0:00:26.9]} 42... Kf6 {[%clk
0:00:43.6]} 43. Ra6+ {[%clk 0:00:27.2]} 43... Kf7 {[%clk 0:00:43.9]} 44. Rb6
{[%clk 0:00:26.1]} 44... Rg1+ {[%clk 0:00:41.6]} 45. Kh4 {[%clk 0:00:20.6]}
45... Rg5 {[%clk 0:00:41.6]} 46. Rb7+ {[%clk 0:00:20]} 46... Ke6 {[%clk
0:00:40.5]} 47. Rb6+ {[%clk 0:00:20]} 47... Kd7 {[%clk 0:00:40.1]} 48. Ra6
{[%clk 0:00:19.7]} 48... Kc7 {[%clk 0:00:38.7]} 49. Re6 {[%clk 0:00:19.4]} 49...
Kd7 {[%clk 0:00:39]} 50. Ra6 {[%clk 0:00:19.2]} 50... Ke7 {[%clk 0:00:38.4]} 51.
Rb6 {[%clk 0:00:19.2]} 51... Rg1 {[%clk 0:00:37.4]} 52. Rb7+ {[%clk 0:00:18.1]}
52... Kf6 {[%clk 0:00:37.3]} 53. Rb6+ {[%clk 0:00:18.3]} 53... Kf7 {[%clk
0:00:37.6]} 54. Rb7+ {[%clk 0:00:18.5]} 54... Ke6 {[%clk 0:00:29.6]} 55. Rb6+
{[%clk 0:00:18.7]} 55... Kd7 {[%clk 0:00:30.1]} 56. Ra6 {[%clk 0:00:17.6]} 56...
Kc7 {[%clk 0:00:21.5]} 57. Re6 {[%clk 0:00:16.1]} 57... Rg5 {[%clk 0:00:21.1]}
58. Ra6 {[%clk 0:00:15.4]} 58... Kb7 {[%clk 0:00:21.3]} 59. Re6 {[%clk 0:00:15]}
59... Kc8 {[%clk 0:00:20.7]} 60. Rd6 {[%clk 0:00:14.6]} 60... Kc7 {[%clk
0:00:20.5]} 61. Re6 {[%clk 0:00:15.1]} 61... Kd7 {[%clk 0:00:20.3]} 62. Ra6
{[%clk 0:00:15.3]} 1/2-1/2

[Event "*** SCC Grand Prix: Titled Tuesday Blitz"]
[Site "Chess.com"]
[Date "2020.10.06"]
[Round "8"]
[White "PavelShkapenko"]
[Black "dretch"]
[Result "1-0"]
[WhiteElo "2738"]
[BlackElo "2842"]
[TimeControl "180+1"]
[EndTime "11:36:13 PDT"]
[Termination "PavelShkapenko won on time"]

1. e4 {[%clk 0:03:00.9]} 1... e6 {[%clk 0:03:00.1]} 2. d4 {[%clk 0:03:00.9]}
2... d5 {[%clk 0:03:00.6]} 3. exd5 {[%clk 0:03:01.2]} 3... exd5 {[%clk
0:03:00.8]} 4. Nf3 {[%clk 0:03:01.1]} 4... Bd6 {[%clk 0:03:00.2]} 5. c4 {[%clk
0:03:00.3]} 5... Nf6 {[%clk 0:03:00.4]} 6. Nc3 {[%clk 0:03:00]} 6... dxc4 {[%clk
0:02:59.4]} 7. Bxc4 {[%clk 0:02:59.7]} 7... O-O {[%clk 0:02:59.2]} 8. O-O {[%clk
0:02:59.8]} 8... Nc6 {[%clk 0:02:58.8]} 9. h3 {[%clk 0:02:59.7]} 9... h6 {[%clk
0:02:55.6]} 10. Qc2 {[%clk 0:02:59.7]} 10... Na5 {[%clk 0:02:53.9]} 11. Bd3
{[%clk 0:02:58.6]} 11... Be6 {[%clk 0:02:54]} 12. Re1 {[%clk 0:02:53.5]} 12...
Re8 {[%clk 0:02:49.2]} 13. Ne5 {[%clk 0:02:30.1]} 13... Nc6 {[%clk 0:02:31.3]}
14. Nxc6 {[%clk 0:02:23.5]} 14... bxc6 {[%clk 0:02:32.2]} 15. Be3 {[%clk
0:02:16.1]} 15... Qd7 {[%clk 0:02:31]} 16. Ne4 {[%clk 0:02:05.2]} 16... Nd5
{[%clk 0:02:27.8]} 17. Nc5 {[%clk 0:01:47.9]} 17... Bxc5 {[%clk 0:02:26.7]} 18.
Qxc5 {[%clk 0:01:48.1]} 18... Rab8 {[%clk 0:02:00.5]} 19. b3 {[%clk 0:01:35.6]}
19... Nb4 {[%clk 0:01:59.5]} 20. Bf1 {[%clk 0:01:28.1]} 20... Bf5 {[%clk
0:01:53.1]} 21. Rec1 {[%clk 0:01:22]} 21... Rb6 {[%clk 0:01:40]} 22. Rc3 {[%clk
0:01:08.6]} 22... Nd5 {[%clk 0:01:37.3]} 23. Rcc1 {[%clk 0:01:00.1]} 23... Nxe3
{[%clk 0:01:36.5]} 24. fxe3 {[%clk 0:01:00.4]} 24... Rxe3 {[%clk 0:01:37.2]} 25.
Re1 {[%clk 0:01:00.8]} 25... Qe8 {[%clk 0:01:29.5]} 26. Kf2 {[%clk 0:00:56.2]}
26... Rxe1 {[%clk 0:01:17.2]} 27. Rxe1 {[%clk 0:00:55.9]} 27... Qd8 {[%clk
0:01:17.3]} 28. Qxf5 {[%clk 0:00:51.3]} 28... Qxd4+ {[%clk 0:01:10.6]} 29. Kf3
{[%clk 0:00:31.9]} 29... Rb8 {[%clk 0:00:47.9]} 30. Qe4 {[%clk 0:00:31.7]} 30...
Qc3+ {[%clk 0:00:18.8]} 31. Qe3 {[%clk 0:00:31.6]} 31... Qb2 {[%clk 0:00:13.6]}
32. Bd3 {[%clk 0:00:27.5]} 32... g6 {[%clk 0:00:10.6]} 33. Re2 {[%clk
0:00:21.3]} 33... Qa1 {[%clk 0:00:09.3]} 34. Kg3 {[%clk 0:00:15.6]} 34... Rd8
{[%clk 0:00:08.7]} 35. Kh2 {[%clk 0:00:15.3]} 35... Qf6 {[%clk 0:00:08.7]} 36.
Be4 {[%clk 0:00:14.7]} 36... Re8 {[%clk 0:00:08.3]} 37. Qf3 {[%clk 0:00:15.1]}
37... Qd6+ {[%clk 0:00:07.7]} 38. g3 {[%clk 0:00:12.5]} 38... Re6 {[%clk
0:00:07.4]} 39. Bd3 {[%clk 0:00:11.5]} 39... Rf6 {[%clk 0:00:07.8]} 40. Qe4
{[%clk 0:00:11]} 40... Qc5 {[%clk 0:00:07.9]} 41. Bc4 {[%clk 0:00:09.3]} 41...
Kg7 {[%clk 0:00:07.2]} 42. Kg2 {[%clk 0:00:06.4]} 42... h5 {[%clk 0:00:06.8]}
43. h4 {[%clk 0:00:06.2]} 43... Qd6 {[%clk 0:00:06.2]} 44. Qe5 {[%clk
0:00:05.7]} 44... Kf8 {[%clk 0:00:05.2]} 45. Qxd6+ {[%clk 0:00:05.6]} 45... cxd6
{[%clk 0:00:06.1]} 46. Rf2 {[%clk 0:00:05.7]} 46... Rxf2+ {[%clk 0:00:05.9]} 47.
Kxf2 {[%clk 0:00:06.2]} 47... Ke7 {[%clk 0:00:06.5]} 48. Ke3 {[%clk 0:00:06.3]}
48... d5 {[%clk 0:00:07]} 49. Bd3 {[%clk 0:00:06.7]} 49... Kd6 {[%clk
0:00:07.3]} 50. b4 {[%clk 0:00:07.2]} 50... Ke5 {[%clk 0:00:07.5]} 51. a3 {[%clk
0:00:06.8]} 51... f5 {[%clk 0:00:01.9]} 52. Bc2 {[%clk 0:00:06.9]} 1-0

[Event "*** SCC Grand Prix: Titled Tuesday Blitz"]
[Site "Chess.com"]
[Date "2020.10.06"]
[Round "8"]
[White "Ze-Pequeno"]
[Black "Alexandercs432"]
[Result "1/2-1/2"]
[WhiteElo "2244"]
[BlackElo "2143"]
[TimeControl "180+1"]
[EndTime "11:36:17 PDT"]
[Termination "Game drawn by repetition"]

1. e4 {[%clk 0:03:00]} 1... e5 {[%clk 0:02:59.4]} 2. Nf3 {[%clk 0:02:59.1]} 2...
Nf6 {[%clk 0:02:59.7]} 3. Nxe5 {[%clk 0:02:57.5]} 3... d6 {[%clk 0:02:59.5]} 4.
Nf3 {[%clk 0:02:57.3]} 4... Nxe4 {[%clk 0:02:59.9]} 5. d4 {[%clk 0:02:57.6]}
5... d5 {[%clk 0:02:59.2]} 6. Bd3 {[%clk 0:02:57.7]} 6... Nc6 {[%clk 0:02:58.6]}
7. O-O {[%clk 0:02:57.5]} 7... Be7 {[%clk 0:02:58.2]} 8. c4 {[%clk 0:02:56.7]}
8... Nb4 {[%clk 0:02:57.5]} 9. Be2 {[%clk 0:02:56.3]} 9... O-O {[%clk
0:02:55.7]} 10. Nc3 {[%clk 0:02:55.6]} 10... Bf5 {[%clk 0:02:56.1]} 11. a3
{[%clk 0:02:54.1]} 11... Nxc3 {[%clk 0:02:56]} 12. bxc3 {[%clk 0:02:53.5]} 12...
Nc6 {[%clk 0:02:56]} 13. Re1 {[%clk 0:02:52.7]} 13... Re8 {[%clk 0:02:54.7]} 14.
Bf4 {[%clk 0:02:51.8]} 14... dxc4 {[%clk 0:02:52.7]} 15. Bxc4 {[%clk 0:02:50.6]}
15... Bd6 {[%clk 0:02:50.3]} 16. Rxe8+ {[%clk 0:02:26.4]} 16... Qxe8 {[%clk
0:02:51.2]} 17. Bxd6 {[%clk 0:02:11.1]} 17... cxd6 {[%clk 0:02:52.1]} 18. Qa4
{[%clk 0:01:58.3]} 18... Ne7 {[%clk 0:01:31.7]} 19. Qb3 {[%clk 0:01:49]} 19...
b6 {[%clk 0:01:19.2]} 20. Re1 {[%clk 0:01:45.1]} 20... Qf8 {[%clk 0:01:10.4]}
21. Ba6 {[%clk 0:01:22.1]} 21... Be6 {[%clk 0:00:58.7]} 22. Qc2 {[%clk
0:01:06.9]} 22... h6 {[%clk 0:00:57.8]} 23. Qe2 {[%clk 0:01:00.1]} 23... Ng6
{[%clk 0:00:42.8]} 24. Qb2 {[%clk 0:00:36.8]} 24... Bd5 {[%clk 0:00:35]} 25. Nd2
{[%clk 0:00:34.6]} 25... Re8 {[%clk 0:00:32.1]} 26. Rc1 {[%clk 0:00:34.5]} 26...
Re6 {[%clk 0:00:24.6]} 27. Bf1 {[%clk 0:00:33.1]} 27... Qe7 {[%clk 0:00:23.6]}
28. c4 {[%clk 0:00:32.9]} 28... Ba8 {[%clk 0:00:22.1]} 29. d5 {[%clk 0:00:31.6]}
29... Re1 {[%clk 0:00:16]} 30. Nf3 {[%clk 0:00:30.7]} 30... Rxc1 {[%clk
0:00:14.7]} 31. Qxc1 {[%clk 0:00:31.6]} 31... Ne5 {[%clk 0:00:14.2]} 32. Nd4
{[%clk 0:00:23.9]} 32... Bb7 {[%clk 0:00:14.6]} 33. Qe3 {[%clk 0:00:18.9]} 33...
Qf6 {[%clk 0:00:14.2]} 34. f4 {[%clk 0:00:17.4]} 34... Ng6 {[%clk 0:00:05.6]}
35. g3 {[%clk 0:00:16.4]} 35... Kh7 {[%clk 0:00:05.5]} 36. Bd3 {[%clk
0:00:15.9]} 36... Bc8 {[%clk 0:00:04.4]} 37. Kg2 {[%clk 0:00:13.4]} 37... h5
{[%clk 0:00:02.6]} 38. h4 {[%clk 0:00:12.1]} 38... Kh6 {[%clk 0:00:01.8]} 39.
Qe2 {[%clk 0:00:10.4]} 39... Kh7 {[%clk 0:00:02.2]} 40. Qe3 {[%clk 0:00:10.6]}
40... Kg8 {[%clk 0:00:02.8]} 41. Qe8+ {[%clk 0:00:09.9]} 41... Nf8 {[%clk
0:00:03.3]} 42. Qe3 {[%clk 0:00:09.5]} 42... Bd7 {[%clk 0:00:02.8]} 43. Qe4
{[%clk 0:00:09.7]} 43... Ba4 {[%clk 0:00:03.2]} 44. Nf3 {[%clk 0:00:09]} 44...
Bd7 {[%clk 0:00:03.3]} 45. Ng5 {[%clk 0:00:09]} 45... Bg4 {[%clk 0:00:03.7]} 46.
Qe3 {[%clk 0:00:08.7]} 46... g6 {[%clk 0:00:03.8]} 47. Qe4 {[%clk 0:00:06.3]}
47... Qb2+ {[%clk 0:00:04.2]} 48. Kg1 {[%clk 0:00:05.6]} 48... Qc1+ {[%clk
0:00:04.6]} 49. Kf2 {[%clk 0:00:05.9]} 49... Qd2+ {[%clk 0:00:04.7]} 50. Kg1
{[%clk 0:00:06]} 50... Qc1+ {[%clk 0:00:05.3]} 51. Kf2 {[%clk 0:00:06.3]} 51...
Qd2+ {[%clk 0:00:05.8]} 52. Kg1 {[%clk 0:00:06.7]} 52... Qc1+ {[%clk 0:00:06.4]}
1/2-1/2